[Event "Nino Khurtsidze Memorial 2019"]
[Site "Vani"]
[Date "2019.09.17"]
[Round "3.4"]
[White "Zhukova, Natalia"]
[Black "Khotenashvili, Bela"]
[Result "1/2-1/2"]
[ECO "A30"]
[WhiteElo "2333"]
[BlackElo "2453"]
[Annotator "ChessBase"]
[PlyCount "69"]
[EventDate "2019.09.17"]
[EventType "tourn"]
[EventCountry "GEO"]
[SourceTitle "playchess.com"]
[Source "ChessBase"]
[SourceQuality "1"]
[TimeControl "900+10"]

1. c4 {[%emt 0:00:00]} c5 {[%emt 0:00:00]} 2. Nf3 {[%emt 0:00:00]} g6 {[%emt 0:00:03]} 3. d4 {[%emt 0:00:24]} cxd4 {[%emt 0:00:09]} 4. Nxd4 {[%emt 0:00:01]} Nf6 {[%emt 0:00:12]} 5. Nc3 {[%emt 0:00:04]} Nc6 {[%emt 0:00:11]} 6. e4 {[%emt 0:00:10]} d6 {[%emt 0:00:24]} 7. Be2 {[%emt 0:00:04]} Nxd4 {[%emt 0:00:07]} 8. Qxd4 {[%emt 0:00:03]} Bg7 {[%emt 0:00:01]} 9. Be3 {[%emt 0:00:18]} O-O {[%emt 0:00:19]} 10. Qd2 {[%emt 0:00:05]} a5 {[%emt 0:00:25]} 11. f3 {[%emt 0:00:32]} a4 {[%emt 0:00:05]} 12. Rb1 {[%emt 0:01:12]} Qa5 {[%emt 0:00:16]} 13. O-O {[%emt 0:03:15]} Be6 {[%emt 0:00:25]} 14. Rfc1 {[%emt 0:01:48]} Rfc8 {[%emt 0:00:16]} 15. b4 {[%emt 0:00:44]} axb3 {[%emt 0:00:23]} 16. axb3 {[%emt 0:00:02]} Qb4 {[%emt 0:02:49]} 17. Na4 {[%emt 0:01:01]} Qxd2 {[%emt 0:00:08]} 18. Bxd2 {[%emt 0:00:01]} Nd7 {[%emt 0:00:04]} 19. Be3 {[%emt 0:02:46]} f5 {[%emt 0:01:18]} 20. Bd3 {[%emt 0:01:16]} Ne5 {[%emt 0:06:48]} 21. Bc2 {[%emt 0:00:01]} Rc7 {[%emt 0:00:35]} 22. Re1 {[%emt 0:00:42]} Kf7 {[%emt 0:00:30]} 23. Re2 {[%emt 0:02:30]} fxe4 {[%emt 0:01:50]} 24. Bxe4 {[%emt 0:00:20]} Nxc4 {[%emt 0:00:36]} 25. Rc1 {[%emt 0:01:38]} Nxe3 {[%emt 0:00:55]} 26. Rxc7 {[%emt 0:00:02]} Bxb3 {[%emt 0:00:04]} 27. Rxb7 {[%emt 0:00:10]} Rxa4 {[%emt 0:00:22]} 28. Rxb3 {[%emt 0:00:02]} Nf5 {[%emt 0:00:11]} 29. Bxf5 {[%emt 0:00:27]} gxf5 {[%emt 0:00:01]} 30. Rb7 {[%emt 0:00:11]} Ra1+ {[%emt 0:00:17]} 31. Kf2 {[%emt 0:00:01]} Bd4+ {[%emt 0:00:08]} 32. Kg3 {[%emt 0:00:01]} Be5+ {[%emt 0:00:00]} 33. f4 {[%emt 0:00:28]} Bf6 {[%emt 0:00:02]} 34. Kf3 {[%emt 0:00:06]} Ra3+ {[%emt 0:00:06]} 35. Re3 {[%emt 0:00:06]} 1/2-1/2

[Event "Nino Khurtsidze Memorial 2019"]
[Site "Vani"]
[Date "2019.09.17"]
[Round "3.5"]
[White "Arabidze, Meri"]
[Black "Batsiashvili, Nino"]
[Result "1/2-1/2"]
[ECO "E16"]
[WhiteElo "2398"]
[BlackElo "2415"]
[Annotator "ChessBase"]
[PlyCount "48"]
[EventDate "2019.09.17"]
[EventType "tourn"]
[EventCountry "GEO"]
[SourceTitle "playchess.com"]
[Source "ChessBase"]
[SourceQuality "1"]
[TimeControl "900+10"]

1. d4 {[%emt 0:00:00]} Nf6 {[%emt 0:00:00]} 2. c4 {[%emt 0:00:00]} e6 {[%emt 0:00:00]} 3. Nf3 {[%emt 0:00:00]} b6 {[%emt 0:00:00]} 4. g3 {[%emt 0:00:01]} Bb7 {[%emt 0:00:24]} 5. Bg2 {[%emt 0:00:01]} Bb4+ {[%emt 0:00:04]} 6. Bd2 {[%emt 0:00:25]} a5 {[%emt 0:00:25]} 7. O-O {[%emt 0:00:15]} O-O {[%emt 0:00:03]} 8. Bf4 {[%emt 0:00:26]} Na6 {[%emt 0:00:39]} 9. c5 {[%emt 0:01:11]} a4 {[%emt 0:00:21]} 10. cxb6 {[%emt 0:00:47]} Bc6 {[%emt 0:00:22]} 11. bxc7 {[%emt 0:00:52]} Nxc7 {[%emt 0:00:02]} 12. Ne5 {[%emt 0:01:26]} Bxg2 {[%emt 0:00:16]} 13. Kxg2 {[%emt 0:00:01]} Ncd5 {[%emt 0:00:30]} 14. Bg5 {[%emt 0:00:49]} Qb6 {[%emt 0:00:57]} 15. Bxf6 {[%emt 0:02:46]} Nxf6 {[%emt 0:00:01]} 16. a3 {[%emt 0:01:10]} Bd6 {[%emt 0:01:11]} 17. Nc3 {[%emt 0:01:16]} Bxe5 {[%emt 0:03:04]} 18. dxe5 {[%emt 0:00:02]} Ng4 {[%emt 0:00:01]} 19. Qxd7 {[%emt 0:02:32]} Nxe5 {[%emt 0:00:46]} 20. Qb5 {[%emt 0:00:13]} Qxb5 {[%emt 0:00:09]} 21. Nxb5 {[%emt 0:00:01]} Rfb8 {[%emt 0:00:24]} 22. Nc3 {[%emt 0:00:11]} Rxb2 {[%emt 0:00:33]} 23. Rfb1 {[%emt 0:00:41]} Rxb1 {[%emt 0:00:02]} 24. Rxb1 {[%emt 0:00:04]} Nc4 {[%emt 0:00:02]} 1/2-1/2

[Event "Nino Khurtsidze Memorial 2019"]
[Site "Vani"]
[Date "2019.09.17"]
[Round "4.1"]
[White "Mamedjarova, Zeinab"]
[Black "Batsiashvili, Nino"]
[Result "0-1"]
[ECO "D04"]
[WhiteElo "2300"]
[BlackElo "2415"]
[Annotator "ChessBase"]
[PlyCount "98"]
[EventDate "2019.09.17"]
[EventType "tourn"]
[EventCountry "GEO"]
[SourceTitle "playchess.com"]
[Source "ChessBase"]
[SourceQuality "1"]
[TimeControl "900+10"]

1. d4 {[%emt 0:00:00]} Nf6 {[%emt 0:00:00]} 2. Nf3 {[%emt 0:00:00]} d5 {[%emt 0:00:00]} 3. e3 {[%emt 0:00:00]} Bf5 {[%emt 0:00:24]} 4. c4 {[%emt 0:00:05]} e6 {[%emt 0:00:08]} 5. Bd3 {[%emt 0:00:25]} Bg6 {[%emt 0:00:09]} 6. O-O {[%emt 0:00:15]} Nbd7 {[%emt 0:00:05]} 7. Nc3 {[%emt 0:00:12]} c6 {[%emt 0:00:15]} 8. Qe2 {[%emt 0:01:17]} Be7 {[%emt 0:00:39]} 9. e4 {[%emt 0:01:35]} dxe4 {[%emt 0:00:05]} 10. Nxe4 {[%emt 0:00:02]} O-O {[%emt 0:00:17]} 11. Bf4 {[%emt 0:00:40]} Nxe4 {[%emt 0:02:12]} 12. Bxe4 {[%emt 0:00:01]} Qb6 {[%emt 0:00:15]} 13. Bxg6 {[%emt 0:00:36]} hxg6 {[%emt 0:00:02]} 14. Rad1 {[%emt 0:00:10]} Rfe8 {[%emt 0:01:35]} 15. a3 {[%emt 0:01:37]} a5 {[%emt 0:00:22]} 16. h3 {[%emt 0:01:16]} Bf6 {[%emt 0:00:11]} 17. Rd2 {[%emt 0:01:14]} c5 {[%emt 0:01:43]} 18. Be5 {[%emt 0:02:30]} cxd4 {[%emt 0:00:52]} 19. Bxd4 {[%emt 0:00:03]} Nc5 {[%emt 0:00:30]} 20. Ne5 {[%emt 0:00:17]} Qc7 {[%emt 0:01:15]} 21. Qe3 {[%emt 0:00:31]} Rac8 {[%emt 0:00:13]} 22. Re1 {[%emt 0:00:48]} a4 {[%emt 0:00:10]} 23. Bc3 {[%emt 0:01:37]} Red8 {[%emt 0:01:37]} 24. Red1 {[%emt 0:00:03]} Rxd2 {[%emt 0:00:59]} 25. Rxd2 {[%emt 0:00:02]} Bxe5 {[%emt 0:00:35]} 26. Bxe5 {[%emt 0:00:08]} Qc6 {[%emt 0:00:01]} 27. Rd6 {[%emt 0:01:10]} Qe4 {[%emt 0:00:08]} 28. Qxe4 {[%emt 0:00:33]} Nxe4 {[%emt 0:00:01]} 29. Rb6 {[%emt 0:00:06]} Rxc4 {[%emt 0:00:31]} 30. Rxb7 {[%emt 0:00:01]} f6 {[%emt 0:00:14]} 31. Rc7 {[%emt 0:01:41]} Rxc7 {[%emt 0:01:29]} 32. Bxc7 {[%emt 0:00:02]} Nd2 {[%emt 0:00:19]} 33. Ba5 {[%emt 0:00:07]} Nc4 {[%emt 0:00:01]} 34. Bc3 {[%emt 0:00:03]} e5 {[%emt 0:00:06]} 35. Kf1 {[%emt 0:01:01]} Kf7 {[%emt 0:00:00]} 36. Ke2 {[%emt 0:00:01]} Ke6 {[%emt 0:00:01]} 37. Kd3 {[%emt 0:00:05]} Kd5 {[%emt 0:00:01]} 38. f3 {[%emt 0:00:01]} g5 {[%emt 0:00:11]} 39. g3 {[%emt 0:00:59]} g6 {[%emt 0:00:11]} 40. g4 {[%emt 0:00:13]} f5 {[%emt 0:00:34]} 41. Ke2 {[%emt 0:00:08]} Nd6 {[%emt 0:02:40]} 42. Kd3 {[%emt 0:00:04]} e4+ {[%emt 0:00:09]} 43. fxe4+ {[%emt 0:00:02]} Nxe4 {[%emt 0:00:01]} 44. Be1 {[%emt 0:00:26]} f4 {[%emt 0:00:10]} 45. Bc3 {[%emt 0:00:11]} Nxc3 {[%emt 0:00:46]} 46. bxc3 {[%emt 0:00:09]} Kc5 {[%emt 0:00:08]} 47. c4 {[%emt 0:00:10]} f3 {[%emt 0:00:04]} 48. Ke3 {[%emt 0:00:06]} Kxc4 {[%emt 0:00:01]} 49. Kxf3 {[%emt 0:00:02]} Kb3 {[%emt 0:00:00]} 0-1

[Event "Nino Khurtsidze Memorial 2019"]
[Site "Vani"]
[Date "2019.09.17"]
[Round "4.2"]
[White "Khotenashvili, Bela"]
[Black "Arabidze, Meri"]
[Result "1/2-1/2"]
[ECO "D00"]
[WhiteElo "2453"]
[BlackElo "2398"]
[Annotator "ChessBase"]
[PlyCount "63"]
[EventDate "2019.09.17"]
[EventType "tourn"]
[EventCountry "GEO"]
[SourceTitle "playchess.com"]
[Source "ChessBase"]
[SourceQuality "1"]
[TimeControl "900+10"]

1. d4 {[%emt 0:00:00]} d5 {[%emt 0:00:00]} 2. Bf4 {[%emt 0:00:00]} Nf6 {[%emt 0:00:00]} 3. e3 {[%emt 0:00:02]} e6 {[%emt 0:00:02]} 4. Nf3 {[%emt 0:00:08]} c5 {[%emt 0:00:03]} 5. Nbd2 {[%emt 0:00:05]} Nc6 {[%emt 0:00:02]} 6. c3 {[%emt 0:00:03]} Bd6 {[%emt 0:00:07]} 7. Bg3 {[%emt 0:00:18]} O-O {[%emt 0:00:07]} 8. Bd3 {[%emt 0:00:10]} b6 {[%emt 0:00:06]} 9. Qe2 {[%emt 0:00:18]} Bb7 {[%emt 0:00:01]} 10. Rd1 {[%emt 0:01:20]} h6 {[%emt 0:00:02]} 11. a3 {[%emt 0:00:10]} Re8 {[%emt 0:02:52]} 12. Ne5 {[%emt 0:02:09]} Qc7 {[%emt 0:00:03]} 13. f4 {[%emt 0:01:01]} Ne7 {[%emt 0:00:09]} 14. Bh4 {[%emt 0:03:18]} Ne4 {[%emt 0:00:09]} 15. Bxe7 {[%emt 0:00:10]} Qxe7 {[%emt 0:00:31]} 16. O-O {[%emt 0:01:04]} f6 {[%emt 0:00:44]} 17. Ng4 {[%emt 0:01:12]} Rac8 {[%emt 0:00:50]} 18. Nxe4 {[%emt 0:01:22]} dxe4 {[%emt 0:00:03]} 19. Ba6 {[%emt 0:01:50]} cxd4 {[%emt 0:02:11]} 20. exd4 {[%emt 0:00:24]} Bxa6 {[%emt 0:01:42]} 21. Qxa6 {[%emt 0:00:02]} f5 {[%emt 0:00:30]} 22. Ne5 {[%emt 0:01:06]} g5 {[%emt 0:00:21]} 23. g3 {[%emt 0:00:33]} Kh7 {[%emt 0:01:13]} 24. Kh1 {[%emt 0:00:34]} gxf4 {[%emt 0:01:12]} 25. gxf4 {[%emt 0:00:02]} Rg8 {[%emt 0:00:25]} 26. Rg1 {[%emt 0:00:45]} Bxe5 {[%emt 0:01:47]} 27. dxe5 {[%emt 0:00:17]} Rcd8 {[%emt 0:00:07]} 28. Qe2 {[%emt 0:00:46]} Rxd1 {[%emt 0:00:20]} 29. Qxd1 {[%emt 0:00:07]} Rxg1+ {[%emt 0:00:59]} 30. Kxg1 {[%emt 0:00:03]} Qc5+ {[%emt 0:01:28]} 31. Kg2 {[%emt 0:00:13]} Qd5 {[%emt 0:00:06]} 32. Qxd5 {[%emt 0:00:29]} 1/2-1/2

[Event "Nino Khurtsidze Memorial 2019"]
[Site "Vani"]
[Date "2019.09.17"]
[Round "4.3"]
[White "Kachiani-Gersinska, Ketino"]
[Black "Zhukova, Natalia"]
[Result "1-0"]
[ECO "A30"]
[WhiteElo "2317"]
[BlackElo "2333"]
[Annotator "NA"]
[PlyCount "67"]
[EventDate "2019.09.17"]
[EventType "tourn"]
[EventCountry "GEO"]
[SourceTitle "playchess.com"]
[Source "ChessBase"]
[SourceQuality "1"]
[TimeControl "900+10"]

1. c4 {[%emt 0:00:00]} c5 {[%emt 0:00:00]} 2. Nf3 {[%emt 0:00:00]} Nf6 {[%emt 0:00:01]} 3. Nc3 {[%emt 0:00:03]} e6 {[%emt 0:00:10]} 4. e4 {[%emt 0:01:11]} Nc6 {[%emt 0:00:50]} 5. Be2 {[%emt 0:01:11]} d5 {[%emt 0:00:10]} 6. exd5 {[%emt 0:00:47]} exd5 {[%emt 0:00:02]} 7. d4 {[%emt 0:00:14]} Be7 {[%emt 0:01:47]} 8. O-O {[%emt 0:03:03]} O-O {[%emt 0:00:37]} 9. Be3 {[%emt 0:00:47]} cxd4 {[%emt 0:01:59]} 10. Nxd4 {[%emt 0:00:09]} Nxd4 {[%emt 0:00:57]} 11. Qxd4 {[%emt 0:02:18]} dxc4 {[%emt 0:00:16]} 12. Bxc4 {[%emt 0:01:59]} Ng4 {[%emt 0:06:29]} 13. Qxd8 {[%emt 0:00:05]} Rxd8 {[%emt 0:00:02]} 14. Nd5 {[%emt 0:00:02]} Bd6 {[%emt 0:00:48]} 15. Bg5 {[%emt 0:02:16]} Re8 {[%emt 0:00:06]} 16. h3 {[%emt 0:00:47]} Ne5 {[%emt 0:00:18]} 17. Bb3 {[%emt 0:00:23]} Bxh3 {[%emt 0:00:40]} 18. f4 {[%emt 0:00:02]} Nd3 {[%emt 0:02:28]} 19. gxh3 {[%emt 0:00:43]} Re2 {[%emt 0:00:10]} 20. Bc4 {[%emt 0:01:36]} Bc5+ {[%emt 0:00:01]} 21. Kh1 {[%emt 0:00:01]} Nf2+ {[%emt 0:00:01]} 22. Kg2 {[%emt 0:00:01]} Rxb2 {[%emt 0:00:01]} 23. Rab1 {[%emt 0:00:07]} Rc2 {[%emt 0:00:37]} 24. Rfc1 {[%emt 0:00:17]} Rxc1 {[%emt 0:00:15]} 25. Rxc1 {[%emt 0:00:01]} Ne4 {[%emt 0:00:08]} 26. Be7 {[%emt 0:00:10]} Bd4 {[%emt 0:00:12]} 27. Bb4 {[%emt 0:00:12]} g6 {[%emt 0:00:10]} 28. Kf3 {[%emt 0:00:09]} Nc5 {[%emt 0:00:12]} 29. Rd1 {[%emt 0:00:12]} a5 {[%emt 0:00:12]} 30. Ba3 {[%emt 0:00:10]} Ne6 {[%emt 0:00:09]} 31. Ne7+ {[%emt 0:00:04]} Kg7 {[%emt 0:00:02]} 32. Bxe6 {[%emt 0:00:02]} fxe6 {[%emt 0:00:04]} 33. Rxd4 {[%emt 0:00:01]} b5 {[%emt 0:00:01]} 34. Rd7 {[%emt 0:00:02]} 1-0

[Event "Nino Khurtsidze Memorial 2019"]
[Site "Vani"]
[Date "2019.09.17"]
[Round "4.4"]
[White "Lomineishvili, Maia"]
[Black "Melia, Salome"]
[Result "1/2-1/2"]
[ECO "B07"]
[WhiteElo "2342"]
[BlackElo "2376"]
[Annotator "NA"]
[PlyCount "43"]
[EventDate "2019.09.17"]
[EventType "tourn"]
[EventCountry "GEO"]
[SourceTitle "playchess.com"]
[Source "ChessBase"]
[SourceQuality "1"]
[TimeControl "900+10"]

1. d4 {[%emt 0:00:00]} Nf6 {[%emt 0:00:00]} 2. Nc3 {[%emt 0:00:06]} g6 {[%emt 0:00:21]} 3. e4 {[%emt 0:00:08]} d6 {[%emt 0:00:01]} 4. Bg5 {[%emt 0:00:13]} Bg7 {[%emt 0:00:02]} 5. Qd2 {[%emt 0:00:06]} h6 {[%emt 0:00:05]} 6. Bh4 {[%emt 0:00:27]} c6 {[%emt 0:00:43]} 7. f3 {[%emt 0:00:37]} b5 {[%emt 0:00:53]} 8. Bd3 {[%emt 0:01:54]} e5 {[%emt 0:01:12]} 9. dxe5 {[%emt 0:01:29]} dxe5 {[%emt 0:00:02]} 10. Bf2 {[%emt 0:04:06]} O-O {[%emt 0:03:45]} 11. Be3 {[%emt 0:00:51]} Kh7 {[%emt 0:00:11]} 12. a4 {[%emt 0:00:41]} b4 {[%emt 0:00:31]} 13. Nce2 {[%emt 0:00:09]} a5 {[%emt 0:00:02]} 14. h4 {[%emt 0:00:14]} Nh5 {[%emt 0:01:23]} 15. g3 {[%emt 0:01:50]} Na6 {[%emt 0:00:23]} 16. Nh3 {[%emt 0:00:34]} Bxh3 {[%emt 0:00:55]} 17. Rxh3 {[%emt 0:00:02]} Qe7 {[%emt 0:00:55]} 18. Bxa6 {[%emt 0:00:52]} Rxa6 {[%emt 0:00:02]} 19. Rd1 {[%emt 0:00:49]} Raa8 {[%emt 0:03:01]} 20. Qd7 {[%emt 0:00:50]} Qxd7 {[%emt 0:00:28]} 21. Rxd7 {[%emt 0:00:01]} Nf6 {[%emt 0:00:12]} 22. Rd6 {[%emt 0:00:13]} 1/2-1/2

[Event "Nino Khurtsidze Memorial 2019"]
[Site "Vani"]
[Date "2019.09.17"]
[Round "4.5"]
[White "Javakhishvili, Lela"]
[Black "Dzagnidze, Nana"]
[Result "1/2-1/2"]
[ECO "D43"]
[WhiteElo "2458"]
[BlackElo "2502"]
[Annotator "ChessBase"]
[PlyCount "67"]
[EventDate "2019.09.17"]
[EventType "tourn"]
[EventCountry "GEO"]
[SourceTitle "playchess.com"]
[Source "ChessBase"]
[SourceQuality "1"]
[TimeControl "900+10"]

1. d4 {[%emt 0:00:00]} Nf6 {[%emt 0:00:00]} 2. c4 {[%emt 0:00:00]} e6 {[%emt 0:00:00]} 3. Nf3 {[%emt 0:00:00]} d5 {[%emt 0:00:11]} 4. Nc3 {[%emt 0:00:02]} c6 {[%emt 0:02:14]} 5. Bg5 {[%emt 0:00:39]} h6 {[%emt 0:00:27]} 6. Bxf6 {[%emt 0:00:08]} Qxf6 {[%emt 0:00:03]} 7. e3 {[%emt 0:00:43]} Nd7 {[%emt 0:00:46]} 8. Qc2 {[%emt 0:00:08]} g6 {[%emt 0:01:19]} 9. e4 {[%emt 0:00:10]} dxe4 {[%emt 0:00:17]} 10. Nxe4 {[%emt 0:00:02]} Bb4+ {[%emt 0:00:08]} 11. Nc3 {[%emt 0:00:40]} c5 {[%emt 0:01:09]} 12. a3 {[%emt 0:01:14]} Bxc3+ {[%emt 0:00:17]} 13. Qxc3 {[%emt 0:00:31]} b6 {[%emt 0:00:26]} 14. Rd1 {[%emt 0:00:39]} Bb7 {[%emt 0:00:25]} 15. Be2 {[%emt 0:00:39]} Rd8 {[%emt 0:03:09]} 16. O-O {[%emt 0:00:47]} O-O {[%emt 0:00:05]} 17. Qe3 {[%emt 0:02:11]} Kg7 {[%emt 0:01:17]} 18. Rfe1 {[%emt 0:00:23]} Bxf3 {[%emt 0:01:10]} 19. Bxf3 {[%emt 0:00:41]} cxd4 {[%emt 0:00:01]} 20. Rxd4 {[%emt 0:00:47]} Ne5 {[%emt 0:00:09]} 21. Rxd8 {[%emt 0:01:54]} Nxf3+ {[%emt 0:00:02]} 22. Qxf3 {[%emt 0:00:01]} Qxf3 {[%emt 0:00:36]} 23. gxf3 {[%emt 0:00:01]} Rxd8 {[%emt 0:00:01]} 24. Re3 {[%emt 0:01:15]} Rd2 {[%emt 0:00:36]} 25. b3 {[%emt 0:00:29]} Kf6 {[%emt 0:00:12]} 26. Rc3 {[%emt 0:00:23]} Ke7 {[%emt 0:02:17]} 27. c5 {[%emt 0:00:36]} Kd7 {[%emt 0:00:29]} 28. cxb6 {[%emt 0:00:23]} axb6 {[%emt 0:00:01]} 29. Kg2 {[%emt 0:00:11]} e5 {[%emt 0:00:17]} 30. a4 {[%emt 0:00:19]} g5 {[%emt 0:00:31]} 31. Rc4 {[%emt 0:00:17]} Rd3 {[%emt 0:00:27]} 32. Rb4 {[%emt 0:00:06]} Kc6 {[%emt 0:00:02]} 33. Rc4+ {[%emt 0:00:17]} Kd7 {[%emt 0:00:09]} 34. Rb4 1/2-1/2

[Event "Nino Khurtsidze Memorial 2019"]
[Site "Vani"]
[Date "2019.09.18"]
[Round "7.1"]
[White "Melia, Salome"]
[Black "Mamedjarova, Zeinab"]
[Result "0-1"]
[ECO "C54"]
[WhiteElo "2376"]
[BlackElo "2300"]
[Annotator "NA"]
[PlyCount "110"]
[EventDate "2019.09.17"]
[EventType "tourn"]
[EventCountry "GEO"]
[SourceTitle "playchess.com"]
[Source "ChessBase"]
[SourceQuality "1"]
[TimeControl "900+10"]

1. e4 {[%emt 0:00:00]} e5 {[%emt 0:00:00]} 2. Nf3 Nc6 3. Bc4 {[%emt 0:00:00]} Bc5 {[%emt 0:00:00]} 4. c3 {[%emt 0:00:00]} Nf6 {[%emt 0:00:00]} 5. d4 {[%emt 0:00:00]} exd4 {[%emt 0:00:03]} 6. e5 {[%emt 0:00:01]} d5 {[%emt 0:00:51]} 7. Bb5 {[%emt 0:00:03]} Ne4 {[%emt 0:00:04]} 8. cxd4 {[%emt 0:00:02]} Bb4+ {[%emt 0:00:17]} 9. Bd2 {[%emt 0:00:18]} Nxd2 {[%emt 0:00:35]} 10. Nbxd2 {[%emt 0:00:02]} Bd7 {[%emt 0:01:10]} 11. O-O {[%emt 0:00:49]} O-O {[%emt 0:00:01]} 12. a3 {[%emt 0:00:43]} Bxd2 {[%emt 0:00:18]} 13. Bxc6 {[%emt 0:00:04]} Bxc6 {[%emt 0:00:31]} 14. Qxd2 {[%emt 0:00:12]} Bb5 {[%emt 0:00:58]} 15. Rfe1 {[%emt 0:00:13]} b6 {[%emt 0:00:20]} 16. Rac1 {[%emt 0:00:07]} Rc8 {[%emt 0:00:03]} 17. b4 {[%emt 0:04:05]} Qe7 {[%emt 0:00:04]} 18. Qc3 {[%emt 0:00:31]} Bd7 {[%emt 0:01:40]} 19. Nd2 {[%emt 0:00:14]} f6 {[%emt 0:00:58]} 20. Qb3 {[%emt 0:03:16]} c6 {[%emt 0:01:45]} 21. b5 {[%emt 0:00:38]} fxe5 {[%emt 0:01:08]} 22. bxc6 {[%emt 0:00:13]} Bxc6 {[%emt 0:00:12]} 23. dxe5 {[%emt 0:00:09]} Kh8 {[%emt 0:00:50]} 24. Nf3 {[%emt 0:00:17]} Bb7 {[%emt 0:00:18]} 25. Rxc8 {[%emt 0:00:17]} Rxc8 {[%emt 0:00:01]} 26. Nd2 {[%emt 0:02:29]} d4 {[%emt 0:00:06]} 27. Qd3 {[%emt 0:01:47]} Qg5 {[%emt 0:02:13]} 28. f3 {[%emt 0:00:03]} h6 {[%emt 0:01:55]} 29. e6 {[%emt 0:00:21]} Qh4 {[%emt 0:00:55]} 30. g3 {[%emt 0:00:17]} Qf6 {[%emt 0:00:22]} 31. f4 {[%emt 0:01:38]} Rc3 {[%emt 0:01:43]} 32. Qb5 {[%emt 0:00:31]} Re3 {[%emt 0:00:11]} 33. Rxe3 {[%emt 0:00:59]} dxe3 {[%emt 0:00:01]} 34. Nf1 {[%emt 0:00:08]} Qxe6 {[%emt 0:00:10]} 35. Qe2 {[%emt 0:00:10]} Qe4 {[%emt 0:00:05]} 36. Nxe3 {[%emt 0:00:07]} Qh1+ {[%emt 0:00:04]} 37. Kf2 {[%emt 0:00:01]} Qxh2+ {[%emt 0:00:03]} 38. Kf1 {[%emt 0:00:17]} Qxg3 {[%emt 0:00:09]} 39. f5 {[%emt 0:00:14]} Be4 {[%emt 0:00:14]} 40. Qf2 {[%emt 0:00:11]} Qxf2+ {[%emt 0:00:23]} 41. Kxf2 {[%emt 0:00:01]} g5 {[%emt 0:00:24]} 42. fxg6 {[%emt 0:00:08]} Bxg6 {[%emt 0:00:04]} 43. Kg3 {[%emt 0:00:21]} Kg7 {[%emt 0:00:04]} 44. Kf4 {[%emt 0:00:00]} Bd3 {[%emt 0:00:33]} 45. Nd5 {[%emt 0:00:15]} Kf7 {[%emt 0:00:05]} 46. Ke5 {[%emt 0:00:07]} h5 {[%emt 0:00:04]} 47. Nf4 {[%emt 0:00:07]} Bg6 {[%emt 0:00:08]} 48. Ng2 {[%emt 0:00:08]} Ke7 {[%emt 0:00:03]} 49. Nh4 {[%emt 0:00:14]} Bf7 {[%emt 0:00:08]} 50. Nf5+ {[%emt 0:00:19]} Kd7 {[%emt 0:00:02]} 51. Kd4 {[%emt 0:00:11]} Ke6 {[%emt 0:00:13]} 52. Nh4 {[%emt 0:00:08]} Kf6 {[%emt 0:00:14]} 53. a4 {[%emt 0:00:11]} a5 {[%emt 0:00:09]} 54. Kc3 {[%emt 0:00:11]} Bd5 {[%emt 0:00:04]} 55. Kd4 {[%emt 0:00:10]} Bc6 {[%emt 0:00:03]} 0-1

[Event "Nino Khurtsidze Memorial 2019"]
[Site "Vani"]
[Date "2019.09.18"]
[Round "7.2"]
[White "Zhukova, Natalia"]
[Black "Dzagnidze, Nana"]
[Result "0-1"]
[ECO "A13"]
[WhiteElo "2333"]
[BlackElo "2502"]
[Annotator "ChessBase"]
[PlyCount "51"]
[EventDate "2019.09.17"]
[EventType "tourn"]
[EventCountry "GEO"]
[SourceTitle "playchess.com"]
[Source "ChessBase"]
[SourceQuality "1"]
[TimeControl "900+10"]

1. c4 {[%emt 0:00:00]} e6 {[%emt 0:00:00]} 2. Nc3 {[%emt 0:00:06]} f5 {[%emt 0:00:48]} 3. Nf3 {[%emt 0:03:57]} Nf6 {[%emt 0:00:06]} 4. d4 {[%emt 0:00:16]} b6 {[%emt 0:00:07]} 5. a3 {[%emt 0:00:52]} Bb7 {[%emt 0:00:19]} 6. d5 {[%emt 0:00:10]} Bd6 {[%emt 0:01:29]} 7. g3 {[%emt 0:00:13]} O-O {[%emt 0:00:07]} 8. Bg2 {[%emt 0:00:01]} Na6 {[%emt 0:01:36]} 9. b4 {[%emt 0:00:38]} c5 {[%emt 0:02:10]} 10. Nb5 {[%emt 0:04:51]} Bb8 {[%emt 0:00:45]} 11. d6 {[%emt 0:00:04]} cxb4 {[%emt 0:00:26]} 12. O-O {[%emt 0:00:17]} b3 {[%emt 0:00:47]} 13. Qxb3 {[%emt 0:01:55]} Nc5 {[%emt 0:00:08]} 14. Qb4 {[%emt 0:01:07]} a6 {[%emt 0:02:14]} 15. Nc7 {[%emt 0:00:02]} Bxc7 {[%emt 0:00:03]} 16. dxc7 {[%emt 0:00:01]} Qxc7 {[%emt 0:00:01]} 17. Rb1 {[%emt 0:00:31]} Bxf3 {[%emt 0:01:45]} 18. Bxf3 {[%emt 0:00:06]} Rab8 {[%emt 0:00:01]} 19. Rd1 {[%emt 0:00:31]} d6 {[%emt 0:00:18]} 20. Bg2 {[%emt 0:00:53]} h6 {[%emt 0:00:45]} 21. Bb2 {[%emt 0:00:27]} Nfe4 {[%emt 0:00:30]} 22. Ba1 {[%emt 0:00:32]} Qe7 {[%emt 0:00:54]} 23. Qb2 {[%emt 0:00:28]} e5 {[%emt 0:02:21]} 24. Qc2 {[%emt 0:00:03]} Qe6 {[%emt 0:00:35]} 25. Rd5 {[%emt 0:00:35]} Kh8 {[%emt 0:00:35]} 26. Rbd1 {[%emt 0:00:09]} 0-1